[Event "Live Chess"]
[Site "Chess.com"]
[Date "2024.06.01"]
[Round "-"]
[White "jk0110"]
[Black "PatientChessPapa"]
[Result "1-0"]
[WhiteElo "1238"]
[BlackElo "797"]
[TimeControl "300"]
[EndTime "14:08:35 PDT"]
[Termination "jk0110 won on time"]

1. e4 {[%clk 0:04:57.6]} 1... d5 {[%clk 0:04:56.6]} 2. d4 {[%clk 0:04:54.7]}
2... dxe4 {[%clk 0:04:52.4]} 3. f3 {[%clk 0:04:53.5]} 3... e5 {[%clk 0:04:45]}
4. fxe4 {[%clk 0:04:47.4]} 4... Qh4+ {[%clk 0:04:41.3]} 5. Kd2 {[%clk
0:04:28.1]} 5... Qxe4 {[%clk 0:04:21.2]} 6. Nf3 {[%clk 0:04:18.2]} 6... Nc6
{[%clk 0:04:13.4]} 7. Bd3 {[%clk 0:04:15.1]} 7... Qf4+ {[%clk 0:03:47.3]} 8. Ke2
{[%clk 0:04:04]} 8... Nxd4+ {[%clk 0:03:38.7]} 9. Nxd4 {[%clk 0:03:41.7]} 9...
Qxd4 {[%clk 0:03:36.9]} 10. Nc3 {[%clk 0:03:25.9]} 10... Bg4+ {[%clk 0:03:31]}
11. Ke1 {[%clk 0:03:16]} 11... Bxd1 {[%clk 0:03:28.8]} 12. Kxd1 {[%clk
0:03:11.8]} 12... O-O-O {[%clk 0:03:13.6]} 13. Nb5 {[%clk 0:02:51.6]} 13... Qg4+
{[%clk 0:02:53.7]} 14. Ke1 {[%clk 0:02:40.8]} 14... Bc5 {[%clk 0:02:41.8]} 15.
Rf1 {[%clk 0:02:17.1]} 15... Nf6 {[%clk 0:02:39]} 16. Bf5+ {[%clk 0:02:12.9]}
16... Qxf5 {[%clk 0:02:32]} 17. Rxf5 {[%clk 0:02:12.8]} 17... Rhe8 {[%clk
0:02:24.4]} 18. Bg5 {[%clk 0:02:08.7]} 18... h6 {[%clk 0:02:02.6]} 19. Bxf6
{[%clk 0:02:02.9]} 19... gxf6 {[%clk 0:02:01.6]} 20. Rxf6 {[%clk 0:01:57.7]}
20... Be3 {[%clk 0:01:48.4]} 21. Rxf7 {[%clk 0:01:47.5]} 21... Rd7 {[%clk
0:01:31.1]} 22. Rxd7 {[%clk 0:01:39.3]} 22... Kxd7 {[%clk 0:01:30]} 23. Rd1+
{[%clk 0:01:34.4]} 23... Ke7 {[%clk 0:01:22]} 24. Nxc7 {[%clk 0:01:28.2]} 24...
Rd8 {[%clk 0:00:34.8]} 25. Nd5+ {[%clk 0:01:19.5]} 25... Rxd5 {[%clk 0:00:33.3]}
26. Rxd5 {[%clk 0:01:17.2]} 26... Ke6 {[%clk 0:00:19]} 27. Rd3 {[%clk
0:01:14.3]} 27... Bd4 {[%clk 0:00:13.8]} 28. c3 {[%clk 0:01:11.5]} 28... Bc5
{[%clk 0:00:08.4]} 29. Rh3 {[%clk 0:01:09.4]} 1-0

[Event "Live Chess"]
[Site "Chess.com"]
[Date "2024.06.01"]
[Round "-"]
[White "kylet1990"]
[Black "grillage"]
[Result "0-1"]
[WhiteElo "734"]
[BlackElo "1866"]
[TimeControl "300"]
[EndTime "14:08:37 PDT"]
[Termination "grillage won by resignation"]

1. e4 {[%clk 0:04:58.8]} 1... d5 {[%clk 0:04:58.7]} 2. exd5 {[%clk 0:04:57.6]}
2... Qxd5 {[%clk 0:04:57]} 3. Nc3 {[%clk 0:04:57.2]} 3... Qd8 {[%clk 0:04:55.6]}
4. Nf3 {[%clk 0:04:55.8]} 4... Nf6 {[%clk 0:04:52.4]} 5. d4 {[%clk 0:04:54.3]}
5... Bg4 {[%clk 0:04:50.2]} 6. h3 {[%clk 0:04:52.2]} 6... Bxf3 {[%clk
0:04:48.9]} 7. Qxf3 {[%clk 0:04:51.5]} 7... c6 {[%clk 0:04:48.2]} 8. Bf4 {[%clk
0:04:49.4]} 8... e6 {[%clk 0:04:43.2]} 9. O-O-O {[%clk 0:04:47.1]} 9... Bb4
{[%clk 0:04:40.1]} 10. a3 {[%clk 0:04:44.6]} 10... Bxc3 {[%clk 0:04:35.1]} 11.
Qxc3 {[%clk 0:04:43.1]} 11... Nd5 {[%clk 0:04:34.5]} 12. Qg3 {[%clk 0:04:37.7]}
12... Nxf4 {[%clk 0:04:33.8]} 13. Qxf4 {[%clk 0:04:36.4]} 13... Nd7 {[%clk
0:04:27.8]} 14. Bd3 {[%clk 0:04:32.6]} 14... Qf6 {[%clk 0:04:25.3]} 15. Qc7
{[%clk 0:04:26.5]} 15... Nb6 {[%clk 0:04:10.4]} 16. Qxb7 {[%clk 0:04:23]} 16...
O-O {[%clk 0:04:09]} 17. Qxc6 {[%clk 0:04:17.9]} 17... Rfc8 {[%clk 0:04:04.9]}
18. Qe4 {[%clk 0:04:08.5]} 18... g6 {[%clk 0:04:01]} 19. g4 {[%clk 0:04:05.6]}
19... Nd5 {[%clk 0:03:46.8]} 20. Bc4 {[%clk 0:04:02.2]} 20... Rxc4 {[%clk
0:03:43.3]} 21. Rhf1 {[%clk 0:03:54.8]} 21... Qf4+ {[%clk 0:03:41.4]} 22. Qxf4
{[%clk 0:03:53.2]} 22... Nxf4 {[%clk 0:03:40.7]} 23. b3 {[%clk 0:03:47.6]} 23...
Rc7 {[%clk 0:03:37]} 24. h4 {[%clk 0:03:45]} 24... Rac8 {[%clk 0:03:33.9]} 25.
c4 {[%clk 0:03:42.7]} 25... Rd8 {[%clk 0:03:26.5]} 26. Kc2 {[%clk 0:03:40.7]}
26... Rcd7 {[%clk 0:03:21.8]} 27. Kc3 {[%clk 0:03:36.9]} 27... Ne2+ {[%clk
0:03:18.1]} 28. Kd3 {[%clk 0:03:33.9]} 28... Nxd4 {[%clk 0:03:16.5]} 29. Kc3
{[%clk 0:03:26.9]} 29... Ne2+ {[%clk 0:03:13.9]} 30. Kc2 {[%clk 0:03:23.7]}
30... Nd4+ {[%clk 0:03:04.4]} 31. Kc3 {[%clk 0:03:21.4]} 31... e5 {[%clk
0:03:03.8]} 32. Rh1 {[%clk 0:03:14.4]} 32... a5 {[%clk 0:03:01.9]} 33. h5 {[%clk
0:03:12.7]} 33... Kg7 {[%clk 0:02:49]} 34. hxg6 {[%clk 0:03:10.4]} 34... hxg6
{[%clk 0:02:47.4]} 35. Rh4 {[%clk 0:03:07]} 35... Ne2+ {[%clk 0:02:42]} 36. Kc2
{[%clk 0:03:01.6]} 36... Rxd1 {[%clk 0:02:41]} 0-1

[Event "Live Chess"]
[Site "Chess.com"]
[Date "2024.06.01"]
[Round "-"]
[White "upoe610"]
[Black "ogpin"]
[Result "1-0"]
[WhiteElo "2244"]
[BlackElo "2209"]
[TimeControl "300"]
[EndTime "14:08:41 PDT"]
[Termination "upoe610 won by resignation"]

1. c4 {[%clk 0:04:57.5]} 1... a5 {[%clk 0:04:59.9]} 2. Nc3 {[%clk 0:04:55.5]}
2... Ra6 {[%clk 0:04:59.8]} 3. d4 {[%clk 0:04:54.2]} 3... g6 {[%clk 0:04:59.4]}
4. e4 {[%clk 0:04:52.3]} 4... Bg7 {[%clk 0:04:58.7]} 5. Nf3 {[%clk 0:04:52]}
5... d6 {[%clk 0:04:58]} 6. Be2 {[%clk 0:04:50.9]} 6... c5 {[%clk 0:04:50.8]} 7.
d5 {[%clk 0:04:48.1]} 7... Nf6 {[%clk 0:04:46.9]} 8. O-O {[%clk 0:04:47]} 8...
O-O {[%clk 0:04:46.1]} 9. Be3 {[%clk 0:04:44.1]} 9... Rb6 {[%clk 0:04:44.9]} 10.
b3 {[%clk 0:04:42.5]} 10... Ng4 {[%clk 0:04:40.9]} 11. Bd2 {[%clk 0:04:38.8]}
11... a4 {[%clk 0:04:33.9]} 12. Nxa4 {[%clk 0:04:36.7]} 12... Bxa1 {[%clk
0:04:12.7]} 13. Qxa1 {[%clk 0:04:34.4]} 13... Ra6 {[%clk 0:04:10]} 14. h3 {[%clk
0:04:33]} 14... Nf6 {[%clk 0:04:08.3]} 15. e5 {[%clk 0:04:32.1]} 15... dxe5
{[%clk 0:04:03]} 16. Nxc5 {[%clk 0:04:30]} 16... Ra7 {[%clk 0:03:45.3]} 17. Nxe5
{[%clk 0:04:28.6]} 17... b6 {[%clk 0:03:36.7]} 18. Ncd3 {[%clk 0:04:27.5]} 18...
Nbd7 {[%clk 0:03:35.6]} 19. Bh6 {[%clk 0:04:25.1]} 19... Nxe5 {[%clk 0:03:26.1]}
20. Nxe5 {[%clk 0:04:23.3]} 20... Re8 {[%clk 0:03:24.5]} 21. Nc6 {[%clk
0:04:20.3]} 21... Qc7 {[%clk 0:03:19]} 22. Nxa7 {[%clk 0:04:19.1]} 22... Qxa7
{[%clk 0:03:18.9]} 23. Bg5 {[%clk 0:04:18.6]} 23... Bf5 {[%clk 0:03:15.6]} 24.
Bxf6 {[%clk 0:04:16.9]} 24... exf6 {[%clk 0:03:15.5]} 25. Bf3 {[%clk 0:04:15.3]}
25... Kg7 {[%clk 0:03:08.2]} 26. Rd1 {[%clk 0:04:13.8]} 26... Bc2 {[%clk
0:03:06.1]} 27. Rd2 {[%clk 0:04:11.8]} 27... Bxb3 {[%clk 0:03:05.4]} 28. g4
{[%clk 0:04:09]} 28... Bxc4 {[%clk 0:03:02.8]} 29. g5 {[%clk 0:04:07.9]} 29...
Qe7 {[%clk 0:02:57]} 30. gxf6+ {[%clk 0:04:05.1]} 30... Qxf6 {[%clk 0:02:56.9]}
31. Qxf6+ {[%clk 0:04:03.9]} 31... Kxf6 {[%clk 0:02:56.8]} 32. d6 {[%clk
0:04:03.8]} 32... Rd8 {[%clk 0:02:53]} 33. Bg4 {[%clk 0:04:01.6]} 33... Be6
{[%clk 0:02:49.6]} 34. Bf3 {[%clk 0:03:59]} 34... Ke5 {[%clk 0:02:45.3]} 35.
Re2+ {[%clk 0:03:49.5]} 35... Kxd6 {[%clk 0:02:44.2]} 36. Rc2 {[%clk 0:03:48.7]}
36... Ke7 {[%clk 0:02:38]} 37. Rc7+ {[%clk 0:03:42.9]} 37... Kf6 {[%clk
0:02:14.7]} 38. a4 {[%clk 0:03:41.3]} 38... Ra8 {[%clk 0:02:06.7]} 39. Bxa8
{[%clk 0:03:40.1]} 1-0

[Event "Live Chess"]
[Site "Chess.com"]
[Date "2024.06.01"]
[Round "-"]
[White "koekoekoe"]
[Black "ACM42"]
[Result "0-1"]
[WhiteElo "2022"]
[BlackElo "2170"]
[TimeControl "300"]
[EndTime "14:08:43 PDT"]
[Termination "ACM42 won on time"]

1. d4 {[%clk 0:04:58.1]} 1... Nf6 {[%clk 0:04:59.1]} 2. Bf4 {[%clk 0:04:57.7]}
2... g6 {[%clk 0:04:58.5]} 3. e3 {[%clk 0:04:57.3]} 3... Bg7 {[%clk 0:04:57.9]}
4. Nf3 {[%clk 0:04:56.9]} 4... O-O {[%clk 0:04:57.2]} 5. c4 {[%clk 0:04:56.2]}
5... b6 {[%clk 0:04:56.7]} 6. Nc3 {[%clk 0:04:55.5]} 6... Bb7 {[%clk 0:04:56.2]}
7. Be2 {[%clk 0:04:54.8]} 7... d6 {[%clk 0:04:55.7]} 8. O-O {[%clk 0:04:54.4]}
8... Nbd7 {[%clk 0:04:55.2]} 9. Rc1 {[%clk 0:04:53]} 9... a5 {[%clk 0:04:54.7]}
10. h3 {[%clk 0:04:52]} 10... Ne4 {[%clk 0:04:53.7]} 11. Nxe4 {[%clk 0:04:50.2]}
11... Bxe4 {[%clk 0:04:53.1]} 12. Nd2 {[%clk 0:04:49.8]} 12... Bb7 {[%clk
0:04:51.2]} 13. Bf3 {[%clk 0:04:49.3]} 13... Bxf3 {[%clk 0:04:49.5]} 14. Qxf3
{[%clk 0:04:46.5]} 14... e5 {[%clk 0:04:48.9]} 15. dxe5 {[%clk 0:04:43.3]} 15...
Nxe5 {[%clk 0:04:48.3]} 16. Bxe5 {[%clk 0:04:40.6]} 16... Bxe5 {[%clk 0:04:47]}
17. b3 {[%clk 0:04:40.1]} 17... a4 {[%clk 0:04:39.2]} 18. Qd5 {[%clk 0:04:18.6]}
18... Ra5 {[%clk 0:04:33]} 19. Qd3 {[%clk 0:04:15]} 19... axb3 {[%clk
0:04:27.8]} 20. axb3 {[%clk 0:04:14.9]} 20... Ra2 {[%clk 0:04:17.1]} 21. Nf3
{[%clk 0:04:13.7]} 21... Bf6 {[%clk 0:04:13.2]} 22. Nd4 {[%clk 0:04:10.3]} 22...
Qa8 {[%clk 0:04:09]} 23. Nb5 {[%clk 0:04:00]} 23... Rc8 {[%clk 0:03:58.6]} 24.
Nc3 {[%clk 0:03:58.7]} 24... Rb2 {[%clk 0:03:50.7]} 25. Nd5 {[%clk 0:03:57.1]}
25... Bg7 {[%clk 0:03:48.5]} 26. Ne7+ {[%clk 0:03:56]} 26... Kf8 {[%clk
0:03:46.5]} 27. Nxc8 {[%clk 0:03:55.9]} 27... Qxc8 {[%clk 0:03:45.8]} 28. Rb1
{[%clk 0:03:51.8]} 28... Ra2 {[%clk 0:03:43.8]} 29. b4 {[%clk 0:03:45.7]} 29...
Bf6 {[%clk 0:03:41.4]} 30. Rfc1 {[%clk 0:03:37.8]} 30... Qa6 {[%clk 0:03:39.7]}
31. Qb3 {[%clk 0:03:17.2]} 31... Ra3 {[%clk 0:03:33.4]} 32. Qc2 {[%clk
0:03:07.1]} 32... Kg7 {[%clk 0:03:25.6]} 33. b5 {[%clk 0:02:58.5]} 33... Qa8
{[%clk 0:03:19.1]} 34. Rb3 {[%clk 0:02:50.9]} 34... Ra2 {[%clk 0:03:17.6]} 35.
Qd1 {[%clk 0:02:44.3]} 35... Bh4 {[%clk 0:03:15.5]} 36. g3 {[%clk 0:02:40.3]}
36... Bxg3 {[%clk 0:03:14.2]} 37. Qd4+ {[%clk 0:02:27.6]} 37... Be5 {[%clk
0:03:11.4]} 38. Qd5 {[%clk 0:02:22.8]} 38... Qc8 {[%clk 0:03:02.2]} 39. e4
{[%clk 0:02:11.9]} 39... Qd8 {[%clk 0:02:56.1]} 40. Rcc3 {[%clk 0:01:45.8]}
40... Qf6 {[%clk 0:02:26.2]} 41. Rf3 {[%clk 0:01:18.4]} 41... Qg5+ {[%clk
0:02:24.7]} 42. Rg3 {[%clk 0:01:18]} 42... Qc1+ {[%clk 0:02:23.1]} 43. Kg2
{[%clk 0:01:16]} 43... Ra1 {[%clk 0:02:16]} 44. Kf3 {[%clk 0:01:00.8]} 44...
Qh1+ {[%clk 0:02:04.3]} 45. Kg4 {[%clk 0:00:53.9]} 45... h5+ {[%clk 0:01:59.2]}
46. Kh4 {[%clk 0:00:49.9]} 46... Bf6+ {[%clk 0:01:54]} 47. Rg5 {[%clk
0:00:48.6]} 47... Rg1 {[%clk 0:01:50.8]} 48. Rg3 {[%clk 0:00:43.6]} 48... Rxg3
{[%clk 0:01:44.9]} 49. fxg3 {[%clk 0:00:39.3]} 49... Qc1 {[%clk 0:01:43.2]} 50.
Qf5 {[%clk 0:00:17.2]} 50... Qe3 {[%clk 0:01:33.7]} 51. Qf4 {[%clk 0:00:09.4]}
51... Qc5 {[%clk 0:01:18.2]} 52. Qxf6+ {[%clk 0:00:01.3]} 52... Kxf6 {[%clk
0:01:16.1]} 53. Rxc5 {[%clk 0:00:01.2]} 53... bxc5 {[%clk 0:01:06.9]} 54. g4
{[%clk 0:00:01.1]} 54... hxg4 {[%clk 0:01:03.1]} 55. Kxg4 {[%clk 0:00:01]} 55...
Ke5 {[%clk 0:01:02.5]} 56. Kg5 {[%clk 0:00:00.3]} 56... Kxe4 {[%clk 0:01:00.6]}
57. Kf6 {[%clk 0:00:00.2]} 57... d5 {[%clk 0:00:50.4]} 58. Kxf7 {[%clk
0:00:00.1]} 58... dxc4 {[%clk 0:00:49.4]} 0-1

[Event "Live Chess"]
[Site "Chess.com"]
[Date "2024.06.01"]
[Round "-"]
[White "road2gm5000"]
[Black "CCGoodKnightRookie"]
[Result "0-1"]
[WhiteElo "1082"]
[BlackElo "2310"]
[TimeControl "300"]
[EndTime "14:08:54 PDT"]
[Termination "CCGoodKnightRookie won by checkmate"]

1. e4 {[%clk 0:04:58.4]} 1... Nf6 {[%clk 0:04:58]} 2. Nc3 {[%clk 0:04:56.2]}
2... e5 {[%clk 0:04:57]} 3. Nf3 {[%clk 0:04:51.8]} 3... Nc6 {[%clk 0:04:55.6]}
4. Bb5 {[%clk 0:04:51.1]} 4... Bb4 {[%clk 0:04:54.1]} 5. Bxc6 {[%clk 0:04:48.1]}
5... dxc6 {[%clk 0:04:51.8]} 6. d3 {[%clk 0:04:47.3]} 6... Bg4 {[%clk
0:04:50.1]} 7. O-O {[%clk 0:04:45.3]} 7... O-O {[%clk 0:04:48]} 8. Bd2 {[%clk
0:04:44.4]} 8... Nd7 {[%clk 0:04:44.8]} 9. h3 {[%clk 0:04:43.2]} 9... Bxf3
{[%clk 0:04:43.9]} 10. Qxf3 {[%clk 0:04:42.1]} 10... Bd6 {[%clk 0:04:42.6]} 11.
Rad1 {[%clk 0:04:36.8]} 11... Kh8 {[%clk 0:04:40.7]} 12. Be3 {[%clk 0:04:35.9]}
12... Nc5 {[%clk 0:04:36.1]} 13. d4 {[%clk 0:04:31]} 13... exd4 {[%clk
0:04:34.6]} 14. Bxd4 {[%clk 0:04:30.9]} 14... Ne6 {[%clk 0:04:33.7]} 15. e5
{[%clk 0:04:13.6]} 15... Be7 {[%clk 0:04:17.3]} 16. Bxa7 {[%clk 0:04:02.9]}
16... Qc8 {[%clk 0:04:12.8]} 17. Be3 {[%clk 0:03:54.3]} 17... b5 {[%clk
0:03:56.5]} 18. Qxc6 {[%clk 0:03:45.7]} 18... b4 {[%clk 0:03:50.4]} 19. Nd5
{[%clk 0:03:39.1]} 19... Bg5 {[%clk 0:03:38.1]} 20. Bxg5 {[%clk 0:03:33.7]}
20... Nxg5 {[%clk 0:03:36]} 21. Qxc7 {[%clk 0:03:26.7]} 21... Qf5 {[%clk
0:03:20.6]} 22. Ne3 {[%clk 0:03:05.9]} 22... Qg6 {[%clk 0:03:19]} 23. Ra1 {[%clk
0:03:03.4]} 23... Nxh3+ {[%clk 0:03:15.9]} 24. Kh1 {[%clk 0:02:56.7]} 24... Nf4
{[%clk 0:03:13.2]} 25. e6 {[%clk 0:02:47.1]} 25... Qh5+ {[%clk 0:03:12.5]} 26.
Kg1 {[%clk 0:02:41.3]} 26... Ne2# {[%clk 0:03:12.4]} 0-1

[Event "Live Chess"]
[Site "Chess.com"]
[Date "2024.06.01"]
[Round "-"]
[White "Dhaydon19"]
[Black "NeilDruggan73"]
[Result "1-0"]
[WhiteElo "2679"]
[BlackElo "1752"]
[TimeControl "300"]
[EndTime "14:08:58 PDT"]
[Termination "Dhaydon19 won on time"]

1. d4 {[%clk 0:04:56.1]} 1... Nf6 {[%clk 0:04:57.5]} 2. c4 {[%clk 0:04:55.2]}
2... g6 {[%clk 0:04:55.3]} 3. Nf3 {[%clk 0:04:54.6]} 3... Bg7 {[%clk 0:04:54]}
4. g3 {[%clk 0:04:54.3]} 4... b6 {[%clk 0:04:47]} 5. Bg2 {[%clk 0:04:53.6]} 5...
Bb7 {[%clk 0:04:46]} 6. O-O {[%clk 0:04:53.3]} 6... d6 {[%clk 0:04:43.7]} 7. Nc3
{[%clk 0:04:52.7]} 7... O-O {[%clk 0:04:42.4]} 8. Qc2 {[%clk 0:04:50.3]} 8...
Nbd7 {[%clk 0:04:38.7]} 9. Rd1 {[%clk 0:04:48.4]} 9... c5 {[%clk 0:04:34.4]} 10.
dxc5 {[%clk 0:04:46.8]} 10... bxc5 {[%clk 0:04:30.8]} 11. b3 {[%clk 0:04:45.9]}
11... Qa5 {[%clk 0:04:21.2]} 12. Bb2 {[%clk 0:04:44.9]} 12... Rab8 {[%clk
0:04:16]} 13. e4 {[%clk 0:04:38.8]} 13... Nxe4 {[%clk 0:03:57.7]} 14. Ne2 {[%clk
0:04:31.2]} 14... Bxb2 {[%clk 0:03:12]} 15. Qxb2 {[%clk 0:04:28.5]} 15... Ndf6
{[%clk 0:03:03.1]} 16. Qc2 {[%clk 0:04:25.9]} 16... Ng4 {[%clk 0:02:53]} 17. Rf1
{[%clk 0:04:12.3]} 17... f5 {[%clk 0:02:39.7]} 18. h3 {[%clk 0:04:08.9]} 18...
Ne5 {[%clk 0:02:36.3]} 19. Nxe5 {[%clk 0:03:59.1]} 19... dxe5 {[%clk 0:02:30.1]}
20. f3 {[%clk 0:03:58.7]} 20... Nd2 {[%clk 0:02:12.1]} 21. Rf2 {[%clk
0:03:54.1]} 21... e4 {[%clk 0:02:10.3]} 22. fxe4 {[%clk 0:03:44.8]} 22... fxe4
{[%clk 0:02:01.3]} 23. Nf4 {[%clk 0:03:41.1]} 23... e3 {[%clk 0:01:56.8]} 24.
Re2 {[%clk 0:03:39]} 24... Bxg2 {[%clk 0:01:54.4]} 25. Nxg2 {[%clk 0:03:33.4]}
25... Nxb3 {[%clk 0:01:01.9]} 26. Rae1 {[%clk 0:03:30.3]} 26... Nd4 {[%clk
0:00:59.6]} 27. Qe4 {[%clk 0:03:29.5]} 27... Nxe2+ {[%clk 0:00:43.8]} 28. Rxe2
{[%clk 0:03:28.5]} 28... Qc3 {[%clk 0:00:16.7]} 29. Qe6+ {[%clk 0:03:27]} 29...
Rf7 {[%clk 0:00:13]} 30. Qxe3 {[%clk 0:03:24.8]} 30... Rb1+ {[%clk 0:00:11.3]}
31. Kh2 {[%clk 0:03:23.5]} 31... Qxe3 {[%clk 0:00:10]} 32. Nxe3 {[%clk
0:03:22.4]} 32... Rf3 {[%clk 0:00:07.2]} 33. Kg2 {[%clk 0:03:20.6]} 33... Rf6
{[%clk 0:00:05.3]} 34. Nd5 {[%clk 0:03:19.9]} 34... Rd6 {[%clk 0:00:02.9]} 35.
Nxe7+ {[%clk 0:03:18.8]} 35... Kf7 {[%clk 0:00:01.8]} 36. Nd5 {[%clk 0:03:18.5]}
36... Ra6 {[%clk 0:00:00.3]} 37. Rf2+ {[%clk 0:03:18.2]} 1-0

[Event "Live Chess"]
[Site "Chess.com"]
[Date "2024.06.01"]
[Round "-"]
[White "Silverback7829"]
[Black "dhairyapandyauk"]
[Result "0-1"]
[WhiteElo "955"]
[BlackElo "1705"]
[TimeControl "300"]
[EndTime "14:09:28 PDT"]
[Termination "dhairyapandyauk won by checkmate"]

1. d4 {[%clk 0:04:57.8]} 1... Nf6 {[%clk 0:04:58.6]} 2. Nf3 {[%clk 0:04:56.2]}
2... e6 {[%clk 0:04:57.9]} 3. Nc3 {[%clk 0:04:54.6]} 3... b6 {[%clk 0:04:57]} 4.
e4 {[%clk 0:04:50.7]} 4... Bb7 {[%clk 0:04:56.7]} 5. Bb5 {[%clk 0:04:47.9]} 5...
Nxe4 {[%clk 0:04:53.2]} 6. Nxe4 {[%clk 0:04:45.5]} 6... Bxe4 {[%clk 0:04:52.8]}
7. Bd3 {[%clk 0:04:37.4]} 7... Bb7 {[%clk 0:04:50.5]} 8. Bf4 {[%clk 0:04:29.8]}
8... d6 {[%clk 0:04:45]} 9. O-O {[%clk 0:04:24.1]} 9... Nd7 {[%clk 0:04:44.4]}
10. Qe2 {[%clk 0:04:21]} 10... Be7 {[%clk 0:04:42.9]} 11. Bg5 {[%clk 0:04:13.3]}
11... Bxg5 {[%clk 0:04:41.1]} 12. Nxg5 {[%clk 0:04:02.4]} 12... Qxg5 {[%clk
0:04:40.6]} 13. Qe3 {[%clk 0:03:49.5]} 13... Qxg2# {[%clk 0:04:38.7]} 0-1

[Event "Live Chess"]
[Site "Chess.com"]
[Date "2024.06.01"]
[Round "-"]
[White "Brooms1989"]
[Black "JohanKjeldahl"]
[Result "0-1"]
[WhiteElo "1125"]
[BlackElo "1869"]
[TimeControl "300"]
[EndTime "14:10:09 PDT"]
[Termination "JohanKjeldahl won by resignation"]

1. e4 {[%clk 0:04:53.9]} 1... c5 {[%clk 0:04:58.4]} 2. Be2 {[%clk 0:04:52.1]}
2... e6 {[%clk 0:04:55.7]} 3. f4 {[%clk 0:04:50.3]} 3... Nc6 {[%clk 0:04:54.4]}
4. Nf3 {[%clk 0:04:48.3]} 4... a6 {[%clk 0:04:53.4]} 5. d3 {[%clk 0:04:47.2]}
5... Qc7 {[%clk 0:04:51.1]} 6. O-O {[%clk 0:04:45.8]} 6... g6 {[%clk 0:04:49.8]}
7. Be3 {[%clk 0:04:41.9]} 7... b6 {[%clk 0:04:44]} 8. c3 {[%clk 0:04:36.9]} 8...
Bg7 {[%clk 0:04:42.8]} 9. Qe1 {[%clk 0:04:34.6]} 9... Nge7 {[%clk 0:04:40.3]}
10. d4 {[%clk 0:04:17.2]} 10... cxd4 {[%clk 0:04:35.3]} 11. cxd4 {[%clk
0:04:17.1]} 11... d5 {[%clk 0:04:34]} 12. e5 {[%clk 0:04:15.8]} 12... Nf5 {[%clk
0:04:31.2]} 13. Bf2 {[%clk 0:04:13.6]} 13... h5 {[%clk 0:04:28.3]} 14. Nh4
{[%clk 0:04:02.9]} 14... Ncxd4 {[%clk 0:04:18.5]} 15. Nxf5 {[%clk 0:04:00.6]}
15... Nxf5 {[%clk 0:04:17.3]} 16. Nc3 {[%clk 0:03:59]} 16... Bb7 {[%clk
0:04:08.9]} 17. Rc1 {[%clk 0:03:53.3]} 17... Qd8 {[%clk 0:04:04.6]} 18. Na4
{[%clk 0:03:23.5]} 18... b5 {[%clk 0:04:03]} 19. Nb6 {[%clk 0:03:19.6]} 19...
Rb8 {[%clk 0:03:57.6]} 20. Qc3 {[%clk 0:03:11.4]} 20... O-O {[%clk 0:03:54.9]}
21. Kh1 {[%clk 0:02:49.5]} 21... d4 {[%clk 0:03:53.1]} 22. Qc5 {[%clk
0:02:40.8]} 22... d3 {[%clk 0:03:39.3]} 23. Bf3 {[%clk 0:02:31]} 23... Bxf3
{[%clk 0:03:37.3]} 24. gxf3 {[%clk 0:02:30.9]} 0-1

[Event "Live Chess"]
[Site "Chess.com"]
[Date "2024.06.01"]
[Round "-"]
[White "degringolade64"]
[Black "KeithArkell"]
[Result "1-0"]
[WhiteElo "2145"]
[BlackElo "2446"]
[TimeControl "300"]
[EndTime "14:10:14 PDT"]
[Termination "degringolade64 won by resignation"]

1. e4 {[%clk 0:04:57.1]} 1... c6 {[%clk 0:04:59.5]} 2. d4 {[%clk 0:04:55.1]}
2... d5 {[%clk 0:04:59.4]} 3. e5 {[%clk 0:04:53.5]} 3... c5 {[%clk 0:04:58.9]}
4. dxc5 {[%clk 0:04:52]} 4... Nc6 {[%clk 0:04:58.2]} 5. Nf3 {[%clk 0:04:49.8]}
5... Bg4 {[%clk 0:04:57.4]} 6. c3 {[%clk 0:04:47.4]} 6... e6 {[%clk 0:04:56.8]}
7. Be3 {[%clk 0:04:45.3]} 7... Bxf3 {[%clk 0:04:56.2]} 8. Qxf3 {[%clk
0:04:43.2]} 8... a6 {[%clk 0:04:53.9]} 9. Nd2 {[%clk 0:03:58.7]} 9... Nxe5
{[%clk 0:04:49.1]} 10. Qg3 {[%clk 0:03:57]} 10... Nd7 {[%clk 0:04:45.5]} 11. b4
{[%clk 0:03:49.3]} 11... Ngf6 {[%clk 0:04:42.7]} 12. Bd3 {[%clk 0:03:47.5]}
12... g6 {[%clk 0:04:39]} 13. h4 {[%clk 0:03:45.2]} 13... Bg7 {[%clk 0:04:37.9]}
14. h5 {[%clk 0:03:43.9]} 14... Ne4 {[%clk 0:04:35.2]} 15. Bxe4 {[%clk
0:03:25.2]} 15... dxe4 {[%clk 0:03:36.3]} 16. Nxe4 {[%clk 0:03:22]} 16... O-O
{[%clk 0:03:28.6]} 17. Rd1 {[%clk 0:03:01.4]} 17... Qe7 {[%clk 0:03:20.1]} 18.
Bh6 {[%clk 0:02:43.6]} 18... Bxh6 {[%clk 0:03:10.2]} 19. Rxd7 {[%clk 0:02:41.1]}
19... Qxd7 {[%clk 0:02:42.6]} 20. Nf6+ {[%clk 0:02:40.1]} 20... Kg7 {[%clk
0:02:41.8]} 21. Nxd7 {[%clk 0:02:39.6]} 21... Rfd8 {[%clk 0:02:39.3]} 22. Qe5+
{[%clk 0:02:28.2]} 22... Kg8 {[%clk 0:02:38.1]} 23. Nf6+ {[%clk 0:02:25]} 23...
Kf8 {[%clk 0:02:36.8]} 24. hxg6 {[%clk 0:02:13.8]} 24... Bd2+ {[%clk 0:02:34.9]}
25. Ke2 {[%clk 0:02:08.4]} 25... hxg6 {[%clk 0:02:33.8]} 26. Rh8+ {[%clk
0:02:05.5]} 26... Ke7 {[%clk 0:02:33.2]} 27. Rxd8 {[%clk 0:01:59]} 27... Rxd8
{[%clk 0:02:33.1]} 28. Ne4 {[%clk 0:01:57.9]} 28... Bh6 {[%clk 0:02:29]} 29.
Qf6+ {[%clk 0:01:53.8]} 29... Ke8 {[%clk 0:02:27.9]} 30. Nd6+ {[%clk 0:01:52.3]}
1-0